[Event "Kvibergspelen 2022"]
[Site "Kviberg Park Hotel & Conference, Krutvagen 2, Gothenburg, Sweden"]
[Date "2022.09.30"]
[Round "3.17"]
[White "Hagevi, Vidar"]
[Black "Ulff, Johan"]
[Result "0-1"]
[TimeControl "15 minutes + 5 seconds per move from move one (Round 1 - 4) / 90 minutes + 30 seconds per move from move one (Round 5 - 8)"]
[WhiteFideId "1767526"]
[BlackFideId "1733893"]
[WhiteElo "1922"]
[BlackElo "2132"]

1. e4 {[%clk 00:15:08]} {[%emt 00:00:02]} Nc6 {[%clk 00:15:09]} {[%emt
00:00:02]} 2. Nf3 {[%clk 00:15:08]} {[%emt 00:00:05]} d6 {[%clk 00:15:12]} 3.
d4 {[%clk 00:15:07]} {[%emt 00:00:06]} g6 {[%clk 00:15:16]} {[%emt 00:00:02]} 4.
Nc3 {[%clk 00:14:51]} {[%emt 00:00:21]} Bg7 {[%clk 00:15:19]} {[%emt 00:00:02]}
5. Be2 {[%clk 00:14:51]} {[%emt 00:00:04]} Bd7 {[%clk 00:14:47]} {[%emt
00:00:35]} 6. O-O {[%clk 00:14:52]} {[%emt 00:00:05]} Nf6 {[%clk 00:13:52]}
{[%emt 00:01:01]} 7. h3 {[%clk 00:14:54]} {[%emt 00:00:03]} O-O {[%clk
00:13:41]} {[%emt 00:00:16]} 8. Bg5 {[%clk 00:14:31]} {[%emt 00:00:26]} h6
{[%clk 00:13:33]} {[%emt 00:00:13]} 9. Be3 {[%clk 00:14:34]} {[%emt 00:00:02]}
e6 {[%clk 00:12:59]} {[%emt 00:00:39]} 10. Qd2 {[%clk 00:14:35]} {[%emt
00:00:04]} Kh7 {[%clk 00:13:03]} {[%emt 00:00:02]} 11. a4 {[%clk 00:14:25]}
{[%emt 00:00:15]} d5 {[%clk 00:12:21]} {[%emt 00:00:47]} 12. e5 {[%clk
00:14:03]} {[%emt 00:00:26]} Ne4 {[%clk 00:12:25]} {[%emt 00:00:02]} 13. Nxe4
{[%clk 00:13:55]} {[%emt 00:00:13]} dxe4 {[%clk 00:12:28]} {[%emt 00:00:02]} 14.
Nh2 {[%clk 00:13:37]} {[%emt 00:00:22]} Ne7 {[%clk 00:12:28]} {[%emt 00:00:05]}
15. Ng4 {[%clk 00:12:34]} {[%emt 00:01:08]} Nf5 {[%clk 00:12:22]} {[%emt
00:00:12]} 16. c3 {[%clk 00:12:04]} {[%emt 00:00:33]} Bc6 {[%clk 00:11:35]}
{[%emt 00:00:54]} 17. b4 {[%clk 00:11:55]} {[%emt 00:00:14]} b6 {[%clk
00:11:38]} {[%emt 00:00:02]} 18. a5 {[%clk 00:11:47]} {[%emt 00:00:12]} b5
{[%clk 00:10:08]} {[%emt 00:01:35]} 19. a6 {[%clk 00:11:26]} {[%emt 00:00:26]}
Rb8 {[%clk 00:09:17]} {[%emt 00:00:56]} 20. Ra5 {[%clk 00:11:19]} {[%emt
00:00:11]} Qd7 {[%clk 00:08:06]} {[%emt 00:01:16]} 21. Rd1 {[%clk 00:08:40]}
{[%emt 00:02:42]} Bd5 {[%clk 00:08:04]} {[%emt 00:00:09]} 22. Bxh6 {[%clk
00:05:07]} {[%emt 00:03:37]} Nxh6 {[%clk 00:02:21]} {[%emt 00:05:49]} 23. Qxh6+
{[%clk 00:05:03]} {[%emt 00:00:08]} Bxh6 {[%clk 00:02:24]} {[%emt 00:00:02]} 24.
Nf6+ {[%clk 00:05:06]} {[%emt 00:00:02]} Kg7 {[%clk 00:02:28]} 25. Nxd7 {[%clk
00:05:09]} {[%emt 00:00:02]} c6 {[%clk 00:02:30]} {[%emt 00:00:04]} 26. Nxb8
{[%clk 00:04:01]} {[%emt 00:01:11]} Rxb8 {[%clk 00:02:34]} {[%emt 00:00:02]} 27.
Ra3 {[%clk 00:03:47]} {[%emt 00:00:16]} f5 {[%clk 00:01:38]} {[%emt 00:01:05]}
28. exf6+ {[%clk 00:03:40]} {[%emt 00:00:11]} Kxf6 {[%clk 00:01:41]} {[%emt
00:00:01]} 29. g3 {[%clk 00:03:15]} {[%emt 00:00:30]} Ke7 {[%clk 00:01:32]}
{[%emt 00:00:15]} 30. Rf1 {[%clk 00:02:26]} {[%emt 00:00:53]} Rf8 {[%clk
00:01:36]} {[%emt 00:00:02]} 31. c4 {[%clk 00:01:17]} {[%emt 00:01:14]} bxc4
{[%clk 00:01:36]} {[%emt 00:00:05]} 32. Rc3 {[%clk 00:01:15]} {[%emt 00:00:07]}
Bd2 {[%clk 00:01:38]} {[%emt 00:00:03]} 33. Rc2 {[%clk 00:01:19]} {[%emt
00:00:01]} c3 {[%clk 00:00:38]} {[%emt 00:01:06]} 34. h4 {[%clk 00:00:58]}
{[%emt 00:00:24]} Bb3 {[%clk 00:00:40]} {[%emt 00:00:04]} 35. Rfc1 {[%clk
00:00:39]} {[%emt 00:00:24]} Bxc2 {[%clk 00:00:43]} {[%emt 00:00:02]} 36. Rxc2
{[%clk 00:00:42]} {[%emt 00:00:02]} Rb8 {[%clk 00:00:42]} {[%emt 00:00:06]} 37.
g4 {[%clk 00:00:13]} {[%emt 00:00:34]} Rxb4 {[%clk 00:00:46]} {[%emt 00:00:02]}
38. h5 {[%clk 00:00:11]} {[%emt 00:00:07]} gxh5 {[%clk 00:00:50]} {[%emt
00:00:01]} 39. gxh5 {[%clk 00:00:14]} Rxd4 {[%clk 00:00:43]} {[%emt 00:00:12]}
40. Kg2 {[%clk 00:00:15]} {[%emt 00:00:04]} Rb4 {[%clk 00:00:35]} {[%emt
00:00:14]} 41. Kg3 {[%clk 00:00:06]} {[%emt 00:00:14]} Kf6 {[%clk 00:00:37]}
{[%emt 00:00:03]} 42. f3 {[%clk 00:00:10]} {[%emt 00:00:02]} e3 {[%clk
00:00:36]} {[%emt 00:00:06]} 43. f4 {[%clk 00:00:13]} {[%emt 00:00:02]} Rb2
{[%clk 00:00:34]} {[%emt 00:00:07]} 44. Rxb2 {[%clk 00:00:07]} {[%emt
00:00:12]} cxb2 {[%clk 00:00:38]} {[%emt 00:00:01]} 45. Bd3 {[%clk 00:00:11]}
e2 {[%clk 00:00:41]} {[%emt 00:00:02]} 46. Bxe2 {[%emt 00:00:14]} b1=Q 0-1

[Event "Kvibergspelen 2022"]
[Site "Kviberg Park Hotel & Conference, Krutvagen 2, Gothenburg, Sweden"]
[Date "2022.09.30"]
[Round "3.18"]
[White "Jakenberg, Jussi"]
[Black "Morell, Ludvig"]
[Result "1-0"]
[TimeControl "15 minutes + 5 seconds per move from move one (Round 1 - 4) / 90 minutes + 30 seconds per move from move one (Round 5 - 8)"]
[WhiteFideId "1710931"]
[BlackFideId "1736779"]
[WhiteElo "2114"]
[BlackElo "1846"]

1. d4 {[%clk 00:15:07]} {[%emt 00:00:02]} d5 {[%clk 00:15:09]} {[%emt
00:00:01]} 2. Nf3 {[%clk 00:15:09]} {[%emt 00:00:04]} Nf6 {[%clk 00:15:13]}
{[%emt 00:00:01]} 3. g3 {[%clk 00:15:10]} {[%emt 00:00:04]} Bf5 {[%clk
00:15:11]} {[%emt 00:00:06]} 4. c4 {[%clk 00:15:13]} {[%emt 00:00:03]} c6
{[%clk 00:15:14]} {[%emt 00:00:02]} 5. Nc3 {[%clk 00:15:10]} {[%emt 00:00:07]}
e6 {[%clk 00:15:17]} {[%emt 00:00:02]} 6. Qb3 {[%clk 00:15:07]} {[%emt
00:00:08]} Qc8 {[%clk 00:14:56]} {[%emt 00:00:26]} 7. Bg2 {[%clk 00:14:26]}
{[%emt 00:00:46]} Nbd7 {[%clk 00:14:54]} {[%emt 00:00:06]} 8. O-O {[%clk
00:13:41]} {[%emt 00:00:51]} h6 {[%clk 00:14:25]} {[%emt 00:00:34]} 9. cxd5
{[%clk 00:12:13]} {[%emt 00:01:33]} exd5 {[%clk 00:14:05]} {[%emt 00:00:24]} 10.
Bf4 {[%clk 00:12:17]} Nh5 {[%clk 00:13:59]} 11. Bd2 {[%clk 00:11:50]} {[%emt
00:00:43]} Bd6 {[%clk 00:13:51]} 12. Rac1 {[%clk 00:11:33]} {[%emt 00:00:35]}
Nb6 {[%clk 00:13:48]} 13. Ne5 {[%clk 00:10:19]} {[%emt 00:01:27]} Bh3 {[%clk
00:11:40]} 14. Nxd5 {[%clk 00:08:33]} {[%emt 00:04:04]} Nxd5 {[%clk 00:09:01]}
15. Bxd5 {[%clk 00:08:31]} {[%emt 00:02:51]} Be6 {[%clk 00:09:03]} 16. Bxe6
{[%clk 00:06:51]} {[%emt 00:01:48]} Qxe6 {[%clk 00:09:06]} 17. Qxe6+ {[%clk
00:05:16]} {[%emt 00:01:41]} fxe6 {[%clk 00:09:10]} 18. Nc4 {[%clk 00:04:56]}
{[%emt 00:00:26]} Bc7 {[%clk 00:09:08]} 19. Ba5 {[%clk 00:03:46]} {[%emt
00:01:21]} Bd8 {[%clk 00:08:26]} 20. Bxd8 {[%clk 00:03:43]} {[%emt 00:00:56]}
Rxd8 {[%clk 00:08:30]} 21. e3 {[%clk 00:03:46]} {[%emt 00:00:04]} Nf6 {[%clk
00:08:28]} {[%emt 00:00:06]} 22. Na5 {[%clk 00:03:44]} {[%emt 00:00:07]} Rd7
{[%clk 00:08:30]} {[%emt 00:00:03]} 23. Rc2 {[%clk 00:03:43]} {[%emt 00:00:07]}
Nd5 {[%emt 00:00:14]} 24. a3 {[%clk 00:03:42]} Ke7 {[%clk 00:08:20]} {[%emt
00:00:12]} 25. Nc4 {[%clk 00:03:45]} Rc8 {[%emt 00:00:30]} 26. Ne5 {[%clk
00:03:44]} Rdc7 {[%clk 00:08:02]} 27. Rfc1 {[%emt 00:00:22]} Nf6 {[%clk
00:07:55]} 28. Kg2 {[%clk 00:03:38]} {[%emt 00:00:11]} Rd8 {[%clk 00:06:48]}
{[%emt 00:01:11]} 29. h4 {[%clk 00:03:36]} {[%emt 00:00:08]} Ne4 {[%clk
00:06:29]} {[%emt 00:00:24]} 30. Ng6+ {[%clk 00:02:53]} {[%emt 00:00:48]} Kf7
{[%clk 00:06:25]} {[%emt 00:00:08]} 31. Ne5+ {[%clk 00:02:54]} {[%emt
00:00:05]} Ke7 {[%clk 00:06:28]} {[%emt 00:00:02]} 32. b4 {[%clk 00:02:37]}
{[%emt 00:00:22]} Nd6 {[%clk 00:06:04]} {[%emt 00:00:29]} 33. Nc4 {[%clk
00:02:32]} {[%emt 00:00:10]} Nxc4 {[%clk 00:05:52]} {[%emt 00:00:18]} 34. Rxc4
{[%clk 00:02:36]} Rcd7 {[%clk 00:05:42]} {[%emt 00:00:16]} 35. Rc5 {[%clk
00:02:33]} {[%emt 00:00:08]} Kf6 {[%clk 00:05:29]} {[%emt 00:00:17]} 36. R1c2
{[%clk 00:02:30]} {[%emt 00:00:08]} a6 {[%clk 00:05:29]} {[%emt 00:00:05]} 37.
Kf3 {[%clk 00:02:30]} {[%emt 00:00:04]} g5 {[%clk 00:04:28]} {[%emt 00:01:06]}
38. hxg5+ {[%clk 00:02:16]} {[%emt 00:00:20]} hxg5 {[%clk 00:04:32]} {[%emt
00:00:01]} 39. Rc1 {[%clk 00:02:00]} {[%emt 00:00:21]} Rh8 {[%clk 00:04:35]}
{[%emt 00:00:02]} 40. Kg4 {[%clk 00:01:50]} {[%emt 00:00:16]} Rg7 {[%clk
00:04:23]} {[%emt 00:00:17]} 41. a4 {[%clk 00:01:08]} {[%emt 00:00:47]} Rh2
{[%clk 00:04:12]} {[%emt 00:00:15]} 42. f3 {[%clk 00:01:05]} {[%emt 00:00:09]}
Ra2 {[%clk 00:03:59]} {[%emt 00:00:16]} 43. b5 {[%clk 00:01:01]} {[%emt
00:00:11]} cxb5 {[%clk 00:03:29]} {[%emt 00:00:35]} 44. axb5 {[%clk 00:01:05]}
{[%emt 00:00:02]} a5 {[%emt 00:00:01]} 45. b6 {[%clk 00:01:05]} {[%emt
00:00:04]} Ra3 {[%clk 00:03:03]} {[%emt 00:00:36]} 46. R1c3 {[%clk 00:01:00]}
{[%emt 00:00:09]} Ra1 {[%clk 00:03:00]} {[%emt 00:00:06]} 47. Rc7 {[%clk
00:00:56]} {[%emt 00:00:11]} 1-0

[Event "Kvibergspelen 2022"]
[Site "Kviberg Park Hotel & Conference, Krutvagen 2, Gothenburg, Sweden"]
[Date "2022.09.30"]
[Round "3.19"]
[White "Brobakken, Geir"]
[Black "Svensson, Hakan"]
[Result "0-1"]
[TimeControl "15 minutes + 5 seconds per move from move one (Round 1 - 4) / 90 minutes + 30 seconds per move from move one (Round 5 - 8)"]
[WhiteFideId "1511270"]
[BlackFideId "1714201"]
[WhiteElo "1696"]
[BlackElo "2067"]

1. e4 {[%clk 00:15:08]} e5 {[%clk 00:15:08]} {[%emt 00:00:02]} 2. Nc3 {[%clk
00:15:11]} {[%emt 00:00:03]} Nc6 {[%clk 00:15:11]} {[%emt 00:00:02]} 3. Bc4
{[%clk 00:15:15]} {[%emt 00:00:01]} f5 {[%clk 00:14:46]} {[%emt 00:00:30]} 4.
d3 {[%clk 00:14:50]} {[%emt 00:00:30]} Nf6 {[%clk 00:14:48]} {[%emt 00:00:03]}
5. Nf3 {[%clk 00:14:27]} {[%emt 00:00:28]} fxe4 {[%clk 00:14:47]} {[%emt
00:00:06]} 6. dxe4 {[%clk 00:14:29]} {[%emt 00:00:03]} Bc5 {[%clk 00:14:02]}
{[%emt 00:00:50]} 7. O-O {[%clk 00:14:25]} {[%emt 00:00:10]} h6 {[%clk
00:13:48]} {[%emt 00:00:18]} 8. a3 {[%clk 00:14:13]} {[%emt 00:00:18]} d6
{[%clk 00:13:42]} {[%emt 00:00:10]} 9. Qd3 {[%clk 00:13:55]} {[%emt 00:00:22]}
Bg4 {[%clk 00:13:04]} {[%emt 00:00:43]} 10. h3 {[%clk 00:13:21]} Bh5 {[%clk
00:12:54]} {[%emt 00:00:54]} 11. Ne2 {[%clk 00:11:58]} Qd7 {[%clk 00:12:40]}
{[%emt 00:01:44]} 12. b4 {[%clk 00:11:51]} Bb6 {[%clk 00:12:38]} {[%emt
00:00:23]} 13. c3 {[%clk 00:11:24]} g5 {[%clk 00:12:19]} {[%emt 00:00:55]} 14.
Ng3 {[%clk 00:11:09]} Bg6 {[%clk 00:12:03]} {[%emt 00:00:41]} 15. a4 {[%clk
00:10:52]} a5 {[%clk 00:10:17]} {[%emt 00:02:14]} 16. b5 {[%emt 00:00:57]} Ne7
{[%clk 00:10:17]} 17. Rd1 {[%clk 00:09:45]} {[%emt 00:00:25]} g4 {[%clk
00:09:00]} {[%emt 00:01:22]} 18. hxg4 {[%clk 00:09:48]} {[%emt 00:00:02]} Qxg4
{[%clk 00:08:36]} {[%emt 00:00:27]} 19. Be3 {[%clk 00:09:44]} {[%emt 00:00:10]}
Bxe3 {[%clk 00:08:01]} {[%emt 00:00:40]} 20. Qxe3 {[%clk 00:09:43]} {[%emt
00:00:06]} Nxe4 {[%clk 00:07:51]} {[%emt 00:00:14]} 21. Nxe4 {[%clk 00:09:11]}
{[%emt 00:00:38]} Qxe4 {[%clk 00:07:54]} {[%emt 00:00:02]} 22. Qxe4 {[%clk
00:09:01]} {[%emt 00:00:16]} Bxe4 {[%clk 00:07:57]} {[%emt 00:00:02]} 23. Ne1
{[%clk 00:08:30]} {[%emt 00:00:36]} d5 {[%clk 00:07:34]} {[%emt 00:00:28]} 24.
Bb3 {[%clk 00:08:24]} {[%emt 00:00:10]} O-O-O {[%clk 00:07:29]} {[%emt
00:00:10]} 25. Nd3 {[%clk 00:08:16]} {[%emt 00:00:13]} Rhg8 {[%clk 00:07:06]}
{[%emt 00:00:27]} 26. Nxe5 {[%clk 00:07:36]} {[%emt 00:00:46]} Bxg2 {[%clk
00:06:46]} {[%emt 00:00:24]} 27. Kh2 {[%clk 00:07:39]} {[%emt 00:00:03]} Rdf8
{[%clk 00:06:39]} {[%emt 00:00:11]} 28. Ra2 {[%clk 00:07:38]} {[%emt 00:00:06]}
Rf5 {[%clk 00:05:50]} {[%emt 00:00:51]} 29. Re1 {[%clk 00:06:00]} {[%emt
00:01:47]} Rh5+ {[%clk 00:05:30]} {[%emt 00:00:25]} 30. Kg1 {[%clk 00:06:03]}
{[%emt 00:00:02]} Rh1# {[%clk 00:05:25]} {[%emt 00:00:08]} 31. Rea1 {[%emt
00:00:26]} 0-1